bitfinex/quotes_ETHUSD_20241119
["timestamp","ask_amount","ask_price","bid_price","bid_amount"]
[1732022428755,3.20648,3118.7,3118.0,6.41423]
[1732022428961,3.20648,3118.7,3118.0,3.8886747]
[1732022429184,3.20657,3118.6,3118.1,3.20708]
[1732022429499,3.20652,3118.7,3118.1,0.70957547]
[1732022429703,3.20652,3118.7,3117.8,0.401517]
[1732022429704,4.015,3119.0,3118.2,3.20695]
[1732022429853,3.20628,3118.9,3118.3,3.20686]
[1732022430051,3.20628,3118.9,3118.3,3.527546]
[1732022430250,3.20613,3119.1,3118.4,0.8033]
[1732022430454,3.20603,3119.2,3118.6,3.2065]
[1732022430705,7.80965597,3119.7,3118.7,3.2064]
[1732022430706,3.20577,3119.4,3118.7,3.2064]
[1732022431003,3.20585,3119.3,3118.7,3.84769]
[1732022431305,3.20583,3119.4,3118.8,3.20635]
[1732022431460,3.20543,3119.7,3118.8,0.705414]
[1732022431802,3.20543,3119.7,3118.6,3.2065]
[1732022431803,3.20607,3119.1,3118.6,3.2065]
[1732022431951,3.20602,3119.2,3118.4,0.8033]
[1732022432149,0.63782854,3119.6,3118.4,4.00998]
[1732022432150,3.30833822,3119.1,3118.4,4.00998]
[1732022432375,3.20694,3118.3,3118.0,0.8057]
[1732022432597,3.30859184,3118.2,3118.0,0.8057]
[1732022432898,0.10161184,3118.2,3118.0,0.8057]
[1732022433053,0.10161184,3118.2,3118.0,4.01281]
[1732022433258,3.20663,3118.6,3118.1,3.608361]
[1732022433499,6.41283,3118.8,3118.1,3.608361]
[1732022433677,3.2064,3118.8,3118.1,0.401281]
[1732022434004,3.2062,3119.0,3118.4,3.20674]
[1732022434223,0.8283,3119.2,3118.5,3.20658]
[1732022434224,6.41208,3119.2,3118.5,3.20658]
[1732022434361,3.20606,3119.1,3118.5,3.20658]
[1732022434705,6.41243,3119.0,3118.6,0.8258]
[1732022435003,3.0,3119.5,3117.9,3.20724]
[1732022435004,3.20668,3118.5,3118.2,0.8258]
[1732022435458,0.8282,3118.9,3118.2,0.8258]
[1732022435459,3.20648,3118.7,3118.2,0.8258]
[1732022435859,3.20676,3118.5,3118.2,0.8258]
[1732022436273,3.20677,3118.4,3117.5,0.8258]
[1732022436461,3.20708,3118.1,3117.5,0.8258]
[1732022436663,3.20636,3118.8,3118.0,3.20714]
[1732022436892,3.20633,3118.9,3118.2,0.8258]
[1732022437202,3.20633,3118.9,3118.4,3.20674]
[1732022437497,3.20633,3118.9,3118.4,3.20676]
[1732022437671,3.20609,3119.1,3118.4,3.610016]
[1732022437879,3.20621,3119.0,3118.5,3.20666]
[1732022438078,3.20621,3119.0,3118.4,0.403256]
[1732022438371,3.20621,3119.0,3118.4,3.20676]
[1732022438597,3.20621,3119.0,3118.4,3.20669]
[1732022438767,3.20621,3119.0,3118.4,6.41339]
[1732022438962,3.20597,3119.2,3118.4,3.20669]
[1732022439166,0.8087,3119.6,3118.5,0.320669]
[1732022439393,3.20602,3119.2,3118.6,3.20656]
[1732022439589,3.20577,3119.4,3118.6,3.8799519]
[1732022439904,3.20612,3119.1,3118.7,0.8058]
[1732022440308,0.10167215,3119.0,3118.7,0.8058]
[1732022443629,0.10167215,3119.0,3118.7,4.01225]
[1732022443819,3.2058,3119.4,3118.8,3.20628]
[1732022444019,0.10166415,3118.9,3118.8,3.20628]
[1732022444330,3.20565,3119.5,3118.8,3.20627]
[1732022444641,3.79451597,3119.8,3118.8,0.401207]
[1732022444820,3.30700693,3119.4,3118.8,0.401207]
[1732022445019,3.20582,3119.4,3118.7,0.8058]
[1732022445225,0.1011876,3119.3,3118.7,4.01218]
[1732022445736,0.1011876,3119.3,3118.8,3.20633]
[1732022445933,3.3070376,3119.3,3118.8,3.928181]
[1732022446435,3.3070376,3119.3,3118.9,3.20622]
[1732022446436,0.1011876,3119.3,3118.9,3.20622]
[1732022446642,0.1011876,3119.3,3118.9,3.20618]
[1732022446941,0.1011876,3119.3,3119.0,0.3928031]
[1732022447232,0.1011876,3119.3,3118.9,3.20618]
[1732022447233,3.20614,3119.1,3118.7,0.8058]
[1732022447477,0.10118578,3119.2,3117.4,4.11481597]
[1732022447478,3.20651,3118.7,3118.2,3.0]
[1732022447594,3.20651,3118.7,3118.1,4.02425]
[1732022447595,3.20663,3118.6,3118.1,3.8172]
[1732022447793,0.10113782,3118.5,3118.2,0.702428]
[1732022448033,3.20687,3118.3,3118.2,0.702428]
[1732022448245,3.20697,3118.2,3118.1,0.8172]
[1732022448449,3.30799058,3118.3,3118.1,0.8172]
[1732022448601,0.10111195,3118.2,3118.1,0.8172]
[1732022448796,3.2064,3118.8,3118.1,0.8172]
[1732022449002,0.10115507,3118.7,3118.1,0.8172]
[1732022449234,3.20692,3118.3,3118.1,0.8172]
[1732022449739,0.10111195,3118.2,3118.1,0.8172]
[1732022449946,0.10111195,3118.2,3118.1,4.02428]
[1732022450236,3.20638,3118.8,3118.2,3.20692]
[1732022450442,3.2063,3118.9,3118.2,3.20692]
[1732022450443,3.20631,3118.9,3118.5,0.7576]
[1732022450740,0.10110986,3118.7,3118.5,0.7576]
[1732022450944,3.20637,3118.8,3118.5,0.7576]
[1732022451096,3.20681,3118.4,3118.2,0.8206]
[1732022451438,3.3080097,3118.3,3117.7,3.20748]
[1732022451737,3.20698,3118.2,3117.8,0.8206]
[1732022452245,0.10106306,3118.1,3117.8,0.8206]
[1732022452699,3.30814306,3118.1,3117.8,0.8206]
[1732022453059,3.30814306,3118.1,3118.0,3.20718]
[1732022453060,0.10106306,3118.1,3118.0,3.20718]
[1732022453258,0.10106306,3118.1,3118.0,3.930686]
[1732022453493,3.20621,3119.0,3118.4,3.20671]
[1732022453695,3.20605,3119.1,3118.4,3.20671]
[1732022453903,0.10106951,3118.9,3118.5,0.320671]
[1732022454202,0.10106089,3118.8,3118.5,0.320671]
[1732022454404,3.20637,3118.8,3118.5,0.320671]
[1732022454617,0.10105226,3118.7,3118.2,3.20688]
[1732022454797,0.10105226,3118.7,3118.1,3.20708]
[1732022455107,0.10105226,3118.7,3117.9,3.20726]
[1732022455108,0.7589,3118.6,3117.9,3.20726]
[1732022455315,3.20675,3118.5,3117.9,3.20726]
[1732022455614,3.30785841,3118.4,3117.9,3.93159]
[1732022455794,0.10107841,3118.4,3117.9,3.93159]
[1732022456100,0.10107841,3118.4,3117.9,0.72433]
[1732022456308,0.10107841,3118.4,3117.8,4.0359]
[1732022456506,0.10107841,3118.4,3117.7,3.20742]
[1732022456718,0.10107841,3118.4,3117.8,3.20736]
[1732022457017,0.10107841,3118.4,3118.0,3.20717]
[1732022457914,0.10107841,3118.4,3118.0,3.20716]
[1732022458485,0.10107841,3118.4,3118.3,3.20687]
[1732022458871,6.97322,3119.0,3118.4,3.20671]
[1732022459068,0.10105055,3118.4,3118.3,3.20687]
[1732022459315,6.20622,3119.0,3118.5,3.20663]
[1732022459528,3.20627,3118.9,3118.3,3.2068]
[1732022460078,6.20622,3119.0,3118.3,3.2068]
[1732022460079,6.20622,3119.0,3118.5,3.20666]
[1732022460787,3.20627,3118.9,3118.3,3.926962]
[1732022460993,3.20627,3118.9,3118.3,6.41366]
[1732022461199,3.20637,3118.8,3118.3,3.20681]
[1732022461688,3.20625,3118.9,3118.1,0.7873]
[1732022461894,6.41347,3118.5,3117.9,3.20722]
[1732022462196,3.20672,3118.5,3117.9,3.20721]
[1732022462399,3.20681,3118.4,3117.8,0.7706]
[1732022462587,3.20716,3118.1,3117.5,3.95764]
[1732022462787,0.641353,3118.4,3116.4,3.20879]
[1732022462788,0.8143,3117.8,3116.7,3.20846]
[1732022462988,4.02173,3117.8,3117.1,3.20803]
[1732022463410,3.20758,3117.7,3117.1,3.20803]
[1732022463593,3.20763,3117.6,3116.9,3.95822]
[1732022463831,3.20722,3118.0,3117.4,3.20772]
[1732022464514,0.7736,3118.1,3117.6,3.20756]
[1732022464760,0.698058,3118.0,3117.4,3.20772]
[1732022464928,3.20729,3117.9,3117.4,3.20772]
[1732022465249,3.20729,3117.9,3117.4,3.20779]
[1732022465464,3.20756,3117.7,3117.0,3.20811]
[1732022465752,0.3905348,3117.8,3116.9,0.75]
[1732022465914,0.7736,3118.1,3117.7,3.20747]
[1732022466252,3.20698,3118.2,3117.7,3.20747]
[1732022466451,3.20702,3118.2,3117.5,3.97239]
[1732022466626,3.20708,3118.1,3117.5,3.97239]
[1732022466816,3.20708,3118.1,3117.6,3.20757]
[1732022467230,3.20702,3118.2,3117.6,3.20757]
[1732022467431,3.20745,3117.8,3117.2,3.208]
[1732022467637,3.20726,3118.0,3117.5,3.20764]
[1732022467838,3.8883712,3118.0,3117.5,3.20764]
[1732022468051,3.8883712,3118.0,3117.2,3.20794]
[1732022468253,0.6811112,3118.0,3117.1,0.8011]
[1732022468431,0.6811112,3118.0,3117.2,3.208]
[1732022468432,4.02976,3117.8,3117.2,3.208]
[1732022468849,4.02976,3117.8,3117.3,3.20788]
[1732022469179,0.8223,3117.8,3117.3,3.20788]
[1732022469330,0.8035,3118.2,3117.7,3.20739]
[1732022469529,3.79451597,3118.8,3117.9,3.20718]
[1732022469530,6.20673,3118.5,3117.9,3.20718]
[1732022469853,3.20672,3118.5,3118.0,3.20718]
[1732022470053,4.3759553,3118.6,3118.0,3.20718]
[1732022470260,0.10097992,3118.4,3118.0,3.20718]
[1732022470443,0.10097992,3118.4,3117.7,0.7645]
[1732022470444,0.10097987,3118.5,3118.2,3.20689]
[1732022470648,0.10096263,3118.3,3118.2,3.20689]
[1732022470881,1.21990201,3118.9,3117.8,3.20735]
[1732022471030,3.20619,3119.0,3118.5,3.20662]
[1732022471989,3.20619,3119.0,3118.4,3.20668]
[1732022472273,0.320619,3118.9,3118.4,3.20668]
[1732022473055,0.320619,3118.9,3118.3,0.7545]
[1732022473248,0.320619,3118.9,3117.7,3.20747]
[1732022473249,3.20674,3118.5,3117.9,4.03803]
[1732022473478,0.42206483,3119.9,3115.7,3.20955]
[1732022473479,3.20839,3116.9,3115.7,3.20955]
[1732022473632,3.20839,3116.9,3115.6,0.9873569]
[1732022473633,0.64166,3116.8,3116.3,3.20885]
[1732022473830,3.79451597,3116.9,3116.2,4.01966]
[1732022474234,0.7588,3117.1,3116.3,3.20893]
[1732022474433,3.96692,3117.1,3116.2,4.01969]
[1732022474633,3.20827,3117.0,3116.2,4.01969]
[1732022474890,4.663593,3117.1,3116.2,0.8107]
[1732022474891,1.455473,3117.1,3116.2,0.8107]
[1732022475031,0.7588,3117.1,3116.3,3.20893]
[1732022475238,3.96692,3117.1,3116.3,6.819753]
[1732022475458,0.7588,3117.1,3116.4,3.20881]
[1732022475665,3.20843,3116.8,3116.2,0.8107]
[1732022475973,3.79451597,3116.9,3115.9,0.7689]
[1732022476136,3.79451597,3116.9,3116.3,3.20886]
[1732022476762,3.20835,3116.9,3116.3,3.20886]
[1732022476938,3.20822,3117.0,3116.4,3.20881]
[1732022477274,4.03333966,3117.0,3116.4,3.20881]
[1732022477438,3.20835,3116.9,3116.2,3.20895]
[1732022477776,3.2085,3116.8,3115.9,3.97818]
[1732022477986,3.20862,3116.6,3116.1,3.20911]
[1732022478160,3.20862,3116.6,3116.0,3.20923]
[1732022478363,3.20875,3116.5,3115.9,3.97818]
[1732022478909,3.20887,3116.4,3115.9,3.0]
[1732022479266,4.651577,3116.5,3116.0,3.20923]
[1732022479458,4.651577,3116.5,3115.9,3.0]
[1732022480060,3.20884,3116.4,3115.9,3.0]
[1732022480364,4.651627,3116.5,3115.9,6.2093]
[1732022480820,0.8011,3116.5,3115.9,9.41856]
[1732022481102,0.8011,3116.5,3115.9,6.20926]
[1732022481289,4.00985,3116.5,3115.9,6.20926]
[1732022481903,0.8011,3116.5,3115.9,6.20926]
[1732022482654,1.0761266,3117.1,3115.9,6.20926]
[1732022482655,1.8813266,3117.1,3116.4,3.2088]
[1732022482764,3.20821,3117.0,3116.4,3.2088]
[1732022482965,3.20803,3117.2,3116.6,3.20861]
[1732022483442,0.8052,3117.4,3116.9,3.20829]
[1732022483710,4.0127,3117.7,3117.2,3.20799]
[1732022483893,4.0127,3117.7,3116.8,3.0]
[1732022483894,3.20771,3117.5,3116.8,3.0]
[1732022484101,3.20767,3117.6,3117.1,3.20807]
[1732022484896,0.8052,3117.7,3117.1,3.20807]
[1732022485117,1.206462,3117.7,3117.1,3.20807]
[1732022485308,1.206462,3117.7,3116.8,3.0]
[1732022485309,0.10085082,3117.6,3116.9,3.20827]
[1732022485607,0.10085082,3117.6,3116.8,3.0]
[1732022485608,3.20786,3117.4,3116.8,3.0]
[1732022485822,3.97177,3117.1,3116.4,3.20877]
[1732022485963,3.20833,3116.9,3116.0,3.98059]
[1732022486164,3.20859,3116.7,3116.1,3.20904]
[1732022486383,3.20859,3116.7,3116.0,3.98059]
[1732022486384,3.30925021,3116.8,3116.2,3.20896]
[1732022486607,3.30925021,3116.8,3116.0,0.7714]
[1732022486608,0.10080295,3116.6,3116.1,3.20913]
[1732022486918,0.10077695,3116.5,3116.1,3.20913]
[1732022487061,0.10077695,3116.5,3116.0,0.7714]
[1732022487062,0.10077695,3116.5,3116.0,3.98062]
[1732022487269,3.605407,3117.0,3116.2,3.20895]
[1732022487465,0.10076831,3116.4,3116.3,3.20886]
[1732022487669,0.397177,3117.0,3116.4,3.20874]
[1732022487917,6.20761,3117.6,3116.8,3.2084]
[1732022487918,3.98058,3117.5,3116.8,3.2084]
[1732022488070,0.7728,3117.5,3116.8,0.39756]
[1732022488271,0.7728,3117.5,3116.9,3.20824]
[1732022488493,0.7728,3117.5,3117.1,3.20801]
[1732022488698,3.2075,3117.7,3117.2,3.20794]
[1732022488912,0.7588,3117.9,3116.8,0.55]
[1732022489234,3.2072,3118.0,3116.8,0.55]
[1732022489235,3.2074,3117.8,3117.3,3.20789]
[1732022489570,3.20719,3118.0,3117.3,3.20789]
[1732022489967,3.20729,3117.9,3117.3,3.20789]
[1732022490270,3.20729,3117.9,3117.3,3.20783]
[1732022490271,0.641448,3117.8,3117.3,3.20783]
[1732022490692,3.2074,3117.8,3117.3,3.20783]
[1732022490894,3.20761,3117.6,3116.9,3.20825]
[1732022491132,3.20761,3117.6,3117.1,3.2081]
[1732022491333,0.8175,3117.7,3117.1,3.2081]
[1732022491642,3.20722,3118.0,3117.4,3.20778]
[1732022491643,3.20728,3117.9,3117.4,3.20778]
[1732022491948,4.01702551,3118.0,3117.4,3.20778]
[1732022492143,0.80980551,3118.0,3117.6,3.20758]
[1732022492296,1.25887446,3118.1,3117.6,3.20758]
[1732022492499,1.25887446,3118.1,3117.6,3.20753]
[1732022493447,0.44137446,3118.1,3117.8,3.20738]
[1732022493616,4.54761597,3118.5,3117.8,3.20738]
[1732022493617,0.7531,3118.5,3118.0,3.20711]
[1732022493800,0.4547616,3118.4,3118.0,3.20711]
[1732022494095,0.7531,3118.5,3118.2,3.20691]
[1732022494302,3.95986,3118.5,3117.8,3.20729]
[1732022494600,4.355776,3118.5,3117.9,3.20722]
[1732022494800,4.355776,3118.5,3117.9,3.20721]
[1732022494999,4.355776,3118.5,3118.0,3.20717]
[1732022495543,1.149086,3118.5,3118.1,3.20705]
[1732022495748,3.20657,3118.6,3118.1,3.20705]
[1732022495900,3.0,3118.7,3118.1,3.20698]
[1732022495901,3.20647,3118.7,3118.1,3.20698]
[1732022496101,3.96322,3118.8,3118.2,3.20697]
[1732022496102,0.7568,3118.8,3118.2,3.20697]
[1732022496400,3.79451597,3118.5,3117.4,3.20779]
[1732022496593,3.20715,3118.1,3117.5,3.20762]
[1732022496793,3.2072,3118.0,3117.5,3.20762]
[1732022497069,6.41404,3118.2,3117.6,3.20759]
[1732022497194,3.20699,3118.2,3117.5,6.41524]
[1732022497412,3.20699,3118.2,3117.5,3.20762]
[1732022497641,3.20718,3118.0,3116.9,3.20826]
[1732022497868,0.49307676,3118.3,3116.8,1.0]
[1732022497869,3.20787,3117.4,3116.8,1.0]
[1732022498170,0.8194,3117.9,3117.2,3.20799]
[1732022498171,3.20739,3117.8,3117.2,3.20799]
[1732022498314,3.930789,3117.8,3117.2,3.20799]
[1732022498521,3.79451597,3118.1,3117.3,4.02473]
[1732022498522,3.20714,3118.1,3117.3,4.02473]
[1732022498728,3.20714,3118.1,3117.6,3.20752]
[1732022498729,0.55,3118.1,3117.6,3.20752]
[1732022498918,0.55,3117.9,3117.6,6.41505]
[1732022499118,0.55,3117.9,3117.3,0.8169]
[1732022499119,0.55,3117.9,3117.4,3.20775]
[1732022499416,3.20819,3117.1,3116.9,0.803]
[1732022499619,3.20831,3116.9,3116.8,1.0]
[1732022499819,3.75831,3116.9,3116.8,1.0]
[1732022500057,4.534141,3116.9,3116.8,1.0]
[1732022500230,4.63058103,3116.9,3116.8,1.0]
[1732022500848,0.64644003,3116.9,3116.8,1.0]
[1732022501052,3.85475003,3116.9,3116.8,1.0]
[1732022501432,0.64644003,3116.9,3116.8,1.0]
[1732022501863,3.85475003,3116.9,3116.8,1.0]
[1732022503779,0.64644003,3116.9,3116.8,1.0]
[1732022503940,0.09644003,3116.9,3116.8,1.7513]
[1732022504135,3.0,3117.4,3116.8,1.7513]
[1732022504136,0.55,3117.2,3116.8,1.7513]
[1732022504338,3.8547048,3116.9,3116.8,1.0]
[1732022504644,0.55,3116.9,3116.8,1.0]
[1732022504845,3.75823,3117.0,3116.8,1.0]
[1732022505083,0.6463948,3116.9,3116.8,1.0]
[1732022505589,3.8547048,3116.9,3116.8,1.0]
[1732022505886,0.6463948,3116.9,3116.8,1.0]
[1732022506738,7.6972048,3116.9,3116.8,1.0]
[1732022506951,4.03122,3116.5,3115.4,3.20985]
[1732022507155,0.55,3116.2,3115.3,3.20994]
[1732022507355,3.20947,3115.8,3115.2,0.8023]
[1732022507684,3.20932,3116.0,3115.4,3.20985]
[1732022507885,0.09629552,3115.7,3115.4,3.20985]
[1732022508036,3.20932,3116.0,3115.4,3.20985]
[1732022508236,0.09620618,3115.9,3115.6,3.3561469]
[1732022508437,3.98016719,3116.4,3115.7,3.20955]
[1732022508650,3.0,3116.3,3115.8,3.2094]
[1732022508874,3.0,3116.3,3115.6,0.1465569]
[1732022508875,3.20909,3116.2,3115.6,0.1465569]
[1732022509091,0.09297226,3116.2,3115.6,0.1465569]
[1732022509387,3.20936,3115.9,3115.6,0.1465569]
[1732022509601,3.20951,3115.8,3115.6,0.1465569]
[1732022509895,3.20955,3115.7,3115.6,0.1465569]
[1732022510086,3.30246109,3115.7,3115.6,0.1465569]
[1732022510519,0.09291109,3115.7,3115.6,0.1465569]
[1732022510788,3.0,3116.0,3115.6,0.1465569]
[1732022511088,3.20935,3115.9,3115.6,0.1465569]
[1732022511300,0.09292089,3115.9,3115.6,0.1465569]
[1732022511790,0.09290422,3115.8,3115.7,3.20955]
[1732022512200,0.09290422,3115.8,3115.6,0.1465569]
[1732022512201,3.20904,3116.2,3115.6,0.1465569]
[1732022512388,0.8118,3116.5,3115.7,6.41898]
[1732022512389,0.08979554,3115.8,3115.7,6.41898]
[1732022512733,0.08980607,3115.8,3115.7,3.20947]
[1732022512904,3.20876,3116.5,3115.7,3.20947]
[1732022513062,0.08980607,3115.8,3115.7,3.20955]
[1732022513400,3.20876,3116.5,3115.7,3.20955]
[1732022513708,0.320876,3116.5,3115.7,3.20955]
[1732022514002,0.08985789,3116.4,3115.9,6.41853]
[1732022514201,0.08985789,3116.4,3115.9,3.20926]
[1732022514760,3.20872,3116.6,3116.0,3.20923]
[1732022515064,0.01753001,3120.0,3116.2,0.7874]
[1732022515065,4.01985,3117.2,3116.2,0.7874]
[1732022515263,0.08992948,3117.1,3116.5,3.20863]
[1732022515495,3.20823,3117.0,3116.5,3.20863]
[1732022515814,0.7666,3116.9,3116.3,3.20892]
[1732022515987,0.7666,3116.9,3116.3,3.20889]
[1732022516153,0.08991039,3116.8,3116.1,0.8184]
[1732022516358,3.08991039,3116.8,3116.3,3.20889]
[1732022516582,0.08991039,3116.8,3116.6,3.20857]
[1732022516794,0.08991039,3116.8,3116.4,3.20874]
[1732022517091,0.08991542,3116.7,3116.5,3.20872]
[1732022517311,0.08991542,3116.7,3116.6,3.20862]
[1732022517516,3.97148,3117.2,3116.6,3.20862]
[1732022517804,0.08995759,3116.7,3116.6,3.20862]
[1732022518016,3.97148,3117.2,3116.5,3.20872]
[1732022518228,0.08995759,3116.7,3116.5,3.20865]
[1732022518429,3.779,3117.6,3116.7,0.7965]
[1732022518586,1.41139685,3117.9,3117.4,3.20778]
[1732022518781,0.46185569,3117.9,3117.5,3.20766]
[1732022518991,0.09006119,3117.8,3117.5,3.20766]
[1732022519402,0.09006119,3117.8,3117.4,4.00428]
[1732022519587,0.09006119,3117.8,3117.4,0.7965]
[1732022519811,0.09006119,3117.8,3117.6,3.20751]
[1732022520263,0.8083,3118.5,3117.6,3.20751]
[1732022520388,0.8083,3118.5,3117.9,3.2072]
[1732022520726,0.08721064,3118.4,3117.9,3.20724]
[1732022520949,0.08721064,3118.4,3118.2,3.20697]
[1732022521102,0.64490876,3118.6,3118.3,3.20687]
[1732022521283,3.20607,3119.1,3118.4,3.2067]
[1732022521284,3.2062,3119.0,3118.4,3.2067]
[1732022521487,3.20627,3118.9,3118.4,3.2067]
[1732022521796,3.526757,3119.0,3118.4,3.2067]
[1732022521992,0.7638,3119.2,3118.5,3.20662]
[1732022522211,0.7638,3119.2,3118.6,3.20654]
[1732022522212,3.96976,3119.2,3118.6,3.20654]
[1732022522385,3.20568,3119.5,3119.2,3.2059]
[1732022522386,0.83,3119.5,3119.2,3.2059]
[1732022522581,4.03533,3119.9,3119.1,3.97769]
[1732022522780,4.03533,3119.9,3119.4,3.2057]
[1732022522781,0.35830992,3119.8,3119.4,3.2057]
[1732022523023,0.35830992,3119.8,3119.3,3.20583]
[1732022523024,3.20509,3120.1,3119.5,3.20562]
[1732022523226,3.20509,3120.1,3119.3,3.20583]
[1732022523520,3.20509,3120.1,3119.1,0.7717]
[1732022523521,0.83,3120.3,3119.5,3.20556]
[1732022523824,0.83,3120.3,3119.6,3.20548]
[1732022524056,0.83,3120.3,3119.5,3.20556]
[1732022524187,3.20472,3120.4,3119.8,3.20532]
[1732022524387,6.99904597,3120.6,3119.9,3.20522]
[1732022524388,0.320472,3120.3,3119.9,3.20522]
[1732022524624,0.320472,3120.3,3119.1,0.7717]
[1732022524625,3.20436,3120.8,3120.2,3.20489]
[1732022524800,3.20438,3120.8,3119.6,3.20553]
[1732022524988,3.20438,3120.8,3120.1,3.20502]
[1732022525187,3.20438,3120.8,3119.4,0.8297]
[1732022525188,3.20466,3120.5,3119.8,3.20531]
[1732022525414,3.6326695,3120.7,3119.9,3.20514]
[1732022525621,1.077515,3120.9,3119.8,3.20531]
[1732022525792,3.20471,3120.4,3119.8,3.20531]
[1732022526155,3.20512,3120.1,3119.4,0.8297]
[1732022526285,4.02522,3120.1,3119.2,3.20588]
[1732022526485,3.20584,3119.4,3118.6,0.7675]
[1732022526686,3.79451597,3119.8,3118.6,0.7675]
[1732022526687,3.20535,3119.8,3118.6,0.7675]
[1732022527134,3.0,3119.7,3118.8,3.20628]
[1732022527283,0.320535,3119.7,3118.6,0.7675]
[1732022527480,3.20551,3119.7,3119.0,3.20609]
[1732022527724,6.20525,3119.9,3119.2,3.20593]
[1732022527880,4.02516,3120.1,3119.4,3.20572]
[1732022527881,3.0,3120.0,3119.4,3.20572]
[1732022528089,3.7819676,3120.0,3119.2,3.20593]
[1732022528286,3.20533,3119.8,3118.9,3.20625]
[1732022528490,3.20533,3119.8,3118.8,3.20627]
[1732022528685,3.20545,3119.7,3118.6,3.97405]
[1732022528928,3.20574,3119.4,3118.6,3.97405]
[1732022529161,3.20586,3119.3,3118.6,0.7675]
[1732022529440,0.8201,3120.1,3118.5,3.0]
[1732022529441,0.7762,3120.4,3119.8,3.20532]
[1732022529594,3.20437,3120.8,3119.8,0.8231]
[1732022529595,0.815,3120.8,3119.8,0.8231]
[1732022529940,3.20452,3120.6,3119.8,0.8231]
[1732022530293,0.07350912,3120.5,3119.8,4.02841]
[1732022530622,0.07350912,3120.5,3119.9,3.20522]
[1732022530809,0.07350912,3120.5,3119.8,0.8231]
[1732022531023,3.20482,3120.3,3119.4,3.96254]
[1732022531183,3.20492,3120.2,3119.4,0.7568]
[1732022531526,3.20492,3120.2,3119.0,0.7971]
[1732022531527,3.79451597,3119.9,3119.0,0.7971]
[1732022531726,3.2058,3119.4,3118.6,4.00364]
[1732022531915,3.20558,3119.6,3118.6,4.00364]
[1732022532111,0.07344344,3119.3,3118.8,3.20631]
[1732022532289,3.20558,3119.6,3118.9,3.20624]
[1732022532488,0.07343482,3119.2,3118.6,0.7971]
[1732022532719,3.20619,3119.0,3118.6,0.7971]
[1732022532890,3.20604,3119.2,3118.6,0.7971]
[1732022532891,0.07342621,3119.1,3118.6,0.7971]
[1732022533105,3.20604,3119.2,3118.6,0.7971]
[1732022533106,0.07340897,3118.9,3118.6,0.7971]
[1732022533422,3.20615,3119.0,3118.6,0.7971]
[1732022533589,0.8121,3119.4,3117.5,0.410436]
[1732022533590,3.20658,3118.6,3117.8,4.00447]
[1732022533788,3.20599,3119.2,3118.3,3.20685]
[1732022533990,0.8121,3119.4,3118.4,4.00387]
[1732022533991,0.07334118,3118.5,3118.4,4.00387]
[1732022534210,3.20595,3119.2,3118.5,3.20664]
[1732022534600,0.07328546,3119.1,3118.5,3.20664]
[1732022534802,0.07328546,3119.1,3119.0,3.20615]
[1732022534999,0.07328546,3119.1,3119.0,3.97685]
[1732022535230,3.2057,3119.5,3118.8,3.20636]
[1732022535416,3.2057,3119.5,3118.8,3.20633]
[1732022535733,0.40138,3119.7,3118.8,3.20633]
[1732022535734,0.07330504,3119.4,3118.9,3.20624]
[1732022535934,3.20548,3119.7,3119.0,3.20606]
[1732022536229,3.20548,3119.7,3118.6,0.7707]
[1732022536230,4.08954402,3119.3,3118.6,0.7707]
[1732022536389,4.01623,3119.3,3118.6,0.7707]
[1732022536729,4.01623,3119.3,3118.7,3.20646]
[1732022536730,0.073323,3119.2,3118.7,3.20646]
[1732022537091,3.20626,3118.9,3118.6,0.7707]
[1732022537415,0.07331438,3119.1,3118.6,3.97724]
[1732022537732,3.20574,3119.4,3118.6,3.97724]
[1732022537945,3.20659,3118.6,3118.3,0.7907]
[1732022538226,3.20647,3118.7,3118.0,3.2071]
[1732022538417,0.07325699,3118.5,3118.0,3.2071]
[1732022538622,0.07326561,3118.6,3118.2,3.20697]
[1732022538919,3.20646,3118.7,3118.0,6.41421]
[1732022539100,0.07325699,3118.5,3117.9,0.7907]
[1732022539302,3.20666,3118.6,3117.9,0.7907]
[1732022539600,3.28002837,3118.4,3117.9,3.99798]
[1732022539901,4.61511597,3119.1,3118.4,3.20677]
[1732022539902,0.8206,3119.1,3118.4,3.20677]
[1732022540333,3.20595,3119.2,3118.6,3.20654]
[1732022540692,3.20606,3119.1,3118.4,3.20672]
[1732022540897,3.20616,3119.0,3118.4,3.20672]
[1732022541207,4.55281597,3119.5,3118.2,3.20694]
[1732022541208,3.20636,3118.9,3118.2,3.20694]
[1732022541652,0.4552816,3119.4,3118.0,3.20717]
[1732022541653,3.20667,3118.5,3118.0,3.20717]
[1732022541805,3.2066,3118.6,3118.0,3.20717]
[1732022542011,3.20643,3118.8,3118.1,3.20706]
[1732022542241,3.20631,3118.9,3118.1,3.20706]
[1732022542413,0.3904985,3118.8,3118.1,3.20706]
[1732022542734,0.3904985,3118.8,3117.9,0.7907]
[1732022542735,3.20667,3118.5,3117.9,0.7907]
[1732022542943,3.20667,3118.5,3117.9,3.99798]
[1732022543125,0.3904985,3118.8,3117.9,0.7907]
[1732022543322,0.698675,3119.0,3117.4,3.20773]
[1732022543323,3.20713,3118.1,3117.4,3.20773]
[1732022543654,3.20718,3118.0,3117.4,3.20773]
[1732022543878,0.779,3118.4,3117.2,0.7945]
[1732022544007,3.779,3118.4,3117.2,0.7945]
[1732022544207,3.20756,3117.7,3117.2,0.7945]
[1732022544464,3.20754,3117.7,3117.2,0.7945]
[1732022544755,3.20762,3117.6,3117.2,0.7945]
[1732022544907,3.20773,3117.5,3117.2,0.7945]